Cogmind - Beta 13 @@@ ROGUE MODE // 2024.05.04 @ 14:21:12 Player: Sunrosa Result: Destroyed by as-45023 with Assembled Blade Performance ------------- Evolutions (0) 0 Regions Visited (2) 400 Robots Destroyed (18) 90 Value Destroyed (460) 460 Prototype IDs (0) 0 Alien Tech Used (0) 0 Bonus (0) 0 TOTAL SCORE: 950 Bonus ------- None Cogmind --------- Core Integrity 0/250 Matter 261/300 Energy 160/160 System Corruption 0% Temperature Cool (44) Movement Walking (120) Location -10/Mines Parts ------- > --- POWER (1) -------- Light Nuclear Core > --- PROPULSION (2) --- Aluminum Leg Aluminum Leg > --- UTILITY (2) ------ Medium Storage Unit > --- WEAPON (2) ------- (None) > --- INVENTORY (10) --- Ion Engine Ion Engine Ion Engine Aluminum Leg Visual Processing Unit Signal Interpreter Assault Rifle Light Cannon Light Cannon Peak State ------------ > --- POWER ------------ Light Nuclear Core > --- PROPULSION ------- Aluminum Leg Aluminum Leg > --- UTILITY ---------- Medium Storage Unit Sensor Array > --- WEAPON ----------- Light Cannon Light Cannon > --- INVENTORY -------- Ion Engine Ion Engine Ion Engine Aluminum Leg Visual Processing Unit Signal Interpreter Assault Rifle Light Cannon Light Cannon [Rating: 10] Favorites ----------- Power Ion Engine Engine Ion Engine Power Core Light Nuclear Core Propulsion Aluminum Leg Leg Aluminum Leg Utility Small Storage Unit Device Seismic Detector Storage Small Storage Unit Weapon Light Cannon Energy Gun Small Laser Energy Cannon Beam Cannon Ballistic Cannon Light Cannon Build | -11 -10 -10 ------- Run | Yrd Mat Min Slots Evolved . | . . . Power . | . . . Propulsion . | . . . Utility . | . . . Weapon . | . . . Parts Attached 18 | 2 13 3 Power 3 | . 2 1 Engine 2 | . 2 . Core 1 | . . 1 Reactor . | . . . Propulsion 6 | 1 5 . Treads . | . . . Leg 6 | 1 5 . Wheel . | . . . Hover . | . . . Flight . | . . . Utility 5 | 1 3 1 Device 4 | 1 3 . Storage 1 | . . 1 Processor . | . . . Hackware . | . . . Protection . | . . . Artifact . | . . . Weapon 4 | . 3 1 Energy Gun . | . . . Energy Cannon 1 | . 1 . Ballistic Gun . | . . . Ballistic Cannon 3 | . 2 1 Launcher . | . . . Special Weapon . | . . . Impact Weapon . | . . . Slashing Weapon . | . . . Piercing Weapon . | . . . Special Melee Weapon . | . . . Unidentified Prototypes . | . . . Parts Lost 4 | . 1 3 Power . | . . . Propulsion 1 | . 1 . Utility 1 | . . 1 Weapon 2 | . . 2 Highest Loss Streak 2 | . 1 2 To Critical Strikes . | . . . Average Slot Usage (%) 99 | . 100 98 Engine 13 | . 14 12 Leg 28 | . 28 28 Device 13 | . 14 13 Storage 14 | . 14 14 Energy Gun 9 | . 14 . Energy Cannon 8 | . 5 12 Ballistic Cannon 10 | . 7 15 Naked Turns . | . . . Heaviest Build 22 | 14 17 22 Greatest Support 20 | 20 20 20 Greatest Overweight (x) 1 | . 1 1 Average Overweight (x) . | . . . Largest Inventory Capacity 10 | 8 8 10 Average Capacity 8 | 8 8 9 Most Carried 9 | 7 8 9 Average Carried 8 | 6 7 8 Final Capacity 10 | 8 8 10 Final Carried 9 | 6 8 9 Class Distribution -------------------- 61% | Mutant 38% | Scavenger-Mutant Dominant Class ---------------- Mutant | -10/Materials Scavenger-Mutant | -10/Mines Resources | -11 -10 -10 ----------- Run | Yrd Mat Min Matter Collected 449 | 220 183 46 Remotely . | . . . Salvage Created 758 | 102 587 69 Parts 44 | 7 32 5 Haulers Intercepted 2 | . 2 . Recyclers Shooed . | . . . Parts Field Recycled . | . . . Retrieved Matter . | . . . Parts Self-Destructed . | . . . Prevented . | . . . Kills | -11 -10 -10 ------- Run | Yrd Mat Min Combat Hostiles Destroyed 11 | . 8 3 Guns 4 | . 4 . Cannons 7 | . 4 3 Classes Destroyed 7 | 2 4 1 Tunneler 1 | 1 . . Hauler 2 | . 2 . Recycler 2 | 1 1 . Operator 1 | . 1 . Watcher 2 | . 2 . Grunt 10 | . 8 2 Assembled 1 | . . 1 Best Kill Streak 3 | 2 3 2 Combat Bots Only 3 | . 3 2 Max Kills in Single Turn 1 | 1 1 1 Gunslinging . | . . . Exploded . | . . . Melee . | . . . Uniques/NPCs Destroyed . | . . . Combat | -11 -10 -10 -------- Run | Yrd Mat Min Hostile Shots Fired 62 | . 43 19 Missed 12 | . 10 2 Damage Taken 1023 | . 571 452 Core 263 | . 127 136 Absorbed by Shields . | . . . Core Remaining (%) 100 | 100 . . Volleys Fired 72 | 14 48 10 Largest 2 | 1 2 2 Hottest 95 | 40 95 95 Shots Fired 129 | 14 96 19 Gun 82 | 14 68 . Cannon 47 | . 28 19 Launcher . | . . . Special . | . . . Kinetic 32 | . 15 17 Thermal 63 | 14 47 2 Explosive . | . . . Electromagnetic 34 | . 34 . Robot Hit Streak 10 | 7 10 4 Robot Miss Streak 3 | 1 2 3 Penetration Max . | . . . Secondary Targets . | . . . Shots Hit Robots 91 | 13 68 10 Core Hits 34 | 3 24 7 Critical Kills . | . . . Critical Parts Destroyed . | . . . Critical Strikes 2 | . 1 1 Blast 1 | . . 1 Corrupt 1 | . 1 . Melee Attacks . | . . . Impact . | . . . Slashing . | . . . Piercing . | . . . Sneak Attacks . | . . . Combat Hostiles . | . . . Follow-up Attacks . | . . . Damage Inflicted 1505 | 145 1180 180 Guns 792 | 145 647 . Cannons 492 | . 321 171 Explosions 201 | . 201 . Melee . | . . . Ramming 20 | . 11 9 Kinetic 332 | . 161 171 Thermal 638 | 145 493 . Explosive 141 | . 141 . Electromagnetic 374 | . 374 . Impact . | . . . Slashing . | . . . Piercing . | . . . Highest Corruption . | . . . Average Corruption . | . . . Corruption Purged . | . . . Corruption Blocked . | . . . Overload Shots . | . . . Overflow Damage 16 | . 16 . Projectiles 8 | . 8 . Explosions 8 | . 8 . Melee . | . . . Knockbacks 6 | . 1 5 Impact . | . . . Kinetic 6 | . 1 5 Secondary . | . . . Self-Inflicted Damage 151 | . 151 . Shots 2 | . 2 . Rammed . | . . . Targets Rammed 5 | . 4 1 Kicked 5 | . 4 1 Crushed . | . . . Highest Temperature 351 | . 351 74 Average Temperature 83 | . 93 31 Received Heat Transfer 299 | . 231 68 Effects 2 | . 2 . Interference 2 | . 2 . Siege Activations . | . . . Robots Corrupted . | . . . Combat Hostiles . | . . . Parts Fried . | . . . Impact Corruptions . | . . . Robots Melted . | . . . Combat Hostiles . | . . . Parts Melted 1 | 1 . . Heat Transferred 1358 | 325 1033 . Parts Sabotaged . | . . . Parts Stolen . | . . . Parts Stripped . | . . . Power Chain Reactions 2 | . 2 . Alert | -11 -10 -10 ------- Run | Yrd Mat Min Peak Influence 190 | 10 190 56 Initial 56 | . 6 56 Average 65 | 3 90 35 Maximum Alert Level . | . . . Low Security (%) 100 | 100 100 100 Level 1 . | . . . Level 2 . | . . . Level 3 . | . . . Level 4 . | . . . Level 5 . | . . . High Security . | . . . Max Security . | . . . Squads Dispatched 4 | . 4 . Investigation 1 | . 1 . Extermination . | . . . Reinforcement 3 | . 3 . Assault . | . . . Garrison . | . . . Intercept . | . . . Searches Triggered . | . . . Construction Impeded . | . . . Haulers Reinforced . | . . . Active Scanning Responses . | . . . Cargo Convoy Interrupts . | . . . Stealth | -11 -10 -10 --------- Run | Yrd Mat Min Distress Signals . | . . . Communications Jammed . | . . . Distress Signals . | . . . Times Spotted 41 | . 21 20 Peak Tracking Total 13 | . 3 13 Tactical Retreats 3 | . 2 1 Traps | -11 -10 -10 ------- Run | Yrd Mat Min Traps Triggered 1 | . 1 . Indirectly . | . . . Trap Hack Attempts . | . . . Triggered . | . . . Disarmed . | . . . Reprogrammed . | . . . Reused . | . . . Traps Extracted . | . . . Installed . | . . . Triggered . | . . . Machines | -11 -10 -10 ---------- Run | Yrd Mat Min Machines Disabled 1 | . 1 . Max in Single Turn 1 | . 1 . Machines Repaired . | . . . Machines Dismantled . | . . . Machines Sabotaged . | . . . Overloaded Fab Kills . | . . . Hacking | -11 -10 -10 --------- Run | Yrd Mat Min Machines Accessed 6 | . 6 . Terminals 5 | . 5 . Fabricators . | . . . Repair Stations . | . . . Recycling Units 1 | . 1 . Scanalyzers . | . . . Garrison Access . | . . . Total Hacks 23 | . 23 . Successful 13 | . 13 . Failed 9 | . 9 . Catastrophic 1 | . 1 . Database Lockouts 1 | . 1 . Manual 14 | . 14 . Terminals 17 | . 17 . Fabricators . | . . . Repair Stations . | . . . Recycling Units 6 | . 6 . Scanalyzers . | . . . Garrison Access . | . . . Terminal Hacks 6 | . 6 . Part Schematic 1 | . 1 . Terminal Index 1 | . 1 . Locate Traps 2 | . 2 . Transport Status 1 | . 1 . Hauler Manifests 1 | . 1 . Fabricator Hacks . | . . . Repair Station Hacks . | . . . Recycling Unit Hacks 2 | . 2 . Report Inventory 1 | . 1 . Retrieve Components 1 | . 1 . Scanalyzer . | . . . Garrison Access Hacks . | . . . Unauthorized Hacks 5 | . 5 . Terminals 3 | . 3 . Track 1 | . 1 . Botnet 2 | . 2 . Fabricators . | . . . Repair Stations . | . . . Recycling Units 2 | . 2 . Monitor 1 | . 1 . Mask 1 | . 1 . Scanalyzers . | . . . Garrison Access . | . . . Data Cores Recovered . | . . . Used . | . . . Hacking Detections 6 | . 6 . Full Trace Events . | . . . Feedback Events . | . . . Feedback Blocked . | . . . Robot Schematics Acquired . | . . . Robots Built . | . . . Authchips . | . . . Time . | . . . Total Robot Build Rating . | . . . Part Schematics Acquired 1 | . 1 . Parts Built . | . . . Authchips . | . . . Time . | . . . Total Part Build Rating . | . . . Parts Repaired . | . . . Time . | . . . Parts Recycled . | . . . Recycled Matter . | . . . Retrieved Matter . | . . . Retrieved Components 9 | . 9 . Parts Scanalyzed . | . . . Part Schematics Acquired . | . . . Parts Damaged . | . . . Bothacking | -11 -10 -10 ------------ Run | Yrd Mat Min Used RIF Installer . | . . . Robots Hacked . | . . . Non-combat . | . . . Combat . | . . . Robot Hacks Applied . | . . . Relay Couplers Released . | . . . Fabnet Peak Effective % . | . . . Robots Rewired . | . . . Allies Hacked . | . . . Hacks Repelled . | . . . Allies | -11 -10 -10 -------- Run | Yrd Mat Min Total Allies . | . . . Largest Group . | . . . Highest-Rated Group . | . . . Highest-Rated Ally . | . . . Total Orders . | . . . Ally Attacks . | . . . Total Damage . | . . . Kills . | . . . Allies Corrupted . | . . . Allies Melted . | . . . Intel | -11 -10 -10 ------- Run | Yrd Mat Min Robot Analysis Total . | . . . Derelict Logs Recovered 2 | . . 2 Drone Launches . | . . . Drone Recoveries . | . . . Exploration | -11 -10 -10 ------------- Run | Yrd Mat Min Turns Passed 1963 | 135 1134 694 Spaces Moved 1153 | 84 717 352 Core . | . . . Treads . | . . . Legs 1153 | 84 717 352 Wheels . | . . . Hover . | . . . Flight . | . . . Fastest Speed 120 | 120 120 120 Average Speed 139 | 120 120 183 Slowest Speed 190 | 120 190 190 Overloaded Moves . | . . . Propulsion Burnouts . | . . . Robots Hopped . | . . . Cave-ins Triggered . | . . . Exploration Rate (%) 50 | 4 76 71 Regions Visited 2 Branch Regions 1 Pre-discovered Areas . | . . . Known Exits Taken . | . . . Unknown Exits Taken 2 | 1 1 . Scrap Searched 2 | . . 2 Spaces Dug . | . . . Terrain Destroyed 25 | . 25 . Melee . | . . . Projectile . | . . . AOE 25 | . 25 . Terrain Rammed . | . . . Walls Destroyed . | . . . Machines Disabled . | . . . Actions | -11 -10 -10 --------- Run | Yrd Mat Min Total 1384 | 104 900 380 Wait 104 | 4 88 12 Move 1151 | 83 716 352 Hop . | . . . Pick Up 12 | . 11 1 Fast Attach 7 | 1 6 . Attach 2 | 1 . 1 Detach 1 | 1 . . Swap 9 | . 7 2 Drop 21 | . 20 1 Fire 72 | 14 48 10 Melee . | . . . Ram . | . . . Kick 5 | . 4 1 Crush . | . . . Escape Stasis . | . . . Rewire . | . . . Trap . | . . . Miscellaneous . | . . . Route ------- -11/Scrapyard -10/Materials (discovered 3 exits: [*Mat] / [*Min x2]) -10/Mines History --------- Turn | Location | Event 3 | -11/Scrapyard | Discovered new exit (range 2) 136 | -11/Scrapyard | Entered Materials 306 | -10/Materials | Build established: Mutant 484 | -10/Materials | Discovered new exit (range 12) 624 | -10/Materials | Central database locked down 804 | -10/Materials | Discovered new exit (range 12) 1085 | -10/Materials | Discovered new exit (range 5) 1123 | -10/Materials | Core integrity fell below 50% 1270 | -10/Materials | Entered Mines 1453 | -10/Mines | Build established: Scavenger-Mutant 1615 | -10/Mines | Learned Materials terminal intel 1849 | -10/Mines | Learned 2 Materials zone layouts 1876 | -10/Mines | Assembled infested the area 1881 | -10/Mines | Assisted by a Guerilla fighting off Assembled 1924 | -10/Mines | Core integrity fell below 20% 1964 | -10/Mines | Destroyed by as-45023 with Assembled Blade Last Messages --------------- 01894_ as-98061 destroyed. 01897_ The unstable cave ceiling collapses. 01897_ Kicked K-01 Serf. 01900_ as-62771 destroyed. 01900_ D-53 Grenadier destroyed. 01900_ K-01 Serf destroyed. 01905_ G-47 Trooper knocked back. 01907_ Critical hit (Burn: +37). 01908_ G-47 Trooper destroyed. 01914_ Acquired 36 matter. 01921_ Sensor Array destroyed. 01924_ D-53 Grenadier knocked back. 01924_ D-53 Grenadier Lgt. Deuterium Engine blasted off. 01926_ D-53 Grenadier destroyed. 01928_ The unstable cave ceiling collapses. 01957_ as-04804 knocked back. 01960_ as-04804 destroyed. 01961_ Lgt. Cannon severed. 01963_ as-45023 knocked back. 01964_ Lgt. Cannon destroyed. Map ----- +----------------------------------------------------+ | | | | | | | | | | | | | | | | | | | | | ???????????????????????????????????????????? | | ????????????????????????????####??????#????? | | ??????????????????????????### ##???# ####? | | ?????????????????????????? "##?## ## | | ????????????????????????? "%"# # | | ?????????????????????????# " # | | ?????????????????????????# %= | | ?????????????????????????## % | | ?????????????????????????# %=% | | ?????????????????????????# ??# * | | ?????????????????????????# #? ??## | | ?????????????????#####???# #?# ##??#%=### | | ????? ????#### ##??# ### # #####%## | | ???? ## % ##?# ## ### *##%## | | ???? u ### ## = =### | | ????????# @% ## # ## #?## | | ?????????# a a # # #??# | | ?????????### ##### % r # # #??? | | ??????????????????## # # ## #??? | | ???????????????????### # ## #??? | | ?????????????????????### ########## #??? | | ???????????????????????## ##?????#### #??? | | ????????????????????????#####??????# #??? | | ??????????????#????????????????????# ####??? | | ????????????? #????????????????????# #?????? | | ????????????? #????????????????????# #?????? | | ??????####?? #????????????????????# #?????? | | ?????## ##? #????????????????????# #?????? | | ????## ## ###????????????????### #?????? | | ???## ##??????????????## ##????? | | ???# """ #??????????????# ##???? | | ???# """ #?????????????## ##??? | | ???## """ #?????????????## #??? | | ????### #??????????????# """ #??? | | ??????## ###?????????????## """ ##??? | | ???????## ##??????????###### """ ##???? | | ????????## ##???????????# #????? | | ?????????# #???????????# ## #????? | | ?????????# #???????????? #?# #????? | | ?????????# #####??????? #?# #????? | +----------------------------------------------------+ Best States ------------- Heat Dissipation 25 Energy Generation 14 Energy Capacity 250 Matter Stores 300 Matter Capacity 300 Sight Range 16 Robot Scan Range 14 Terrain Scan Density 10 Evasion (%) 55 Item Schematics ----------------- Lrg. Storage Unit | -10/Materials | Hacked Robot Schematics ------------------ None Fabricated ------------ Nothing Alien Tech Used ----------------- None Achievements -------------- None Challenges ------------ None Game ------ Seed ChipExperimentalPrototype Manual? 0 Play Time 00:29:15 Cumulative 50.2 hours Start 2024.05.03 @ 20:54:22 End 2024.05.04 @ 14:21:12 Sessions 2 Manual Loads 0 Difficulty Rogue Special Mode None Game No. 28 Rogue 28 Adventurer 0 Explorer 0 Win Type - Total 1 Types 0/0/1/0/0/0/0/0/0 Lore% 28 Gallery% 34 Achievement% 33 Wizard Run 0 Options --------- Layout 0 ASCII 0 Keyboard 1 Movement Vi Keybinds 1 Fullscreen 1 Font 18/TerminusBold Map View 76x50 Zoom Use 0% Tactical HUD 1 Map Filters NONE Filters LOW_CONTRAST(13,24,33) Steam 1 RUN: 261b4225-bfcd-4f47-876a-0258d9739a7a